bitfinex/quotes_SOLUSD_20250529
["timestamp","ask_amount","ask_price","bid_price","bid_amount"]
[1748554523081,5.95273528,167.99,167.96,29.86190982]
[1748554524775,20.83333333,168.0,167.96,29.86190982]
[1748554529286,31.76127115,168.0,167.96,18.933972]
[1748554529798,10.92793782,167.99,167.95,26.0]
[1748554530473,31.76127115,168.0,167.95,36.92793782]
[1748554530671,10.92793782,167.99,167.95,26.0]
[1748554530874,20.83333333,168.0,167.94,20.42921043]
[1748554530875,10.92793782,167.98,167.94,20.42921043]
[1748554531375,20.83705422,167.97,167.94,46.42921043]
[1748554531879,20.83705422,167.97,167.94,44.79181043]
[1748554532476,20.83705422,167.97,167.94,26.0]
[1748554539010,14.88361016,167.97,167.94,36.92793782]
[1748554542384,14.88361016,167.97,167.94,26.0]
[1748554542715,10.92793782,167.96,167.94,26.0]
[1748554543075,25.81154798,167.97,167.94,26.0]
[1748554543503,10.92793782,167.96,167.93,9.18]
[1748554544501,5.95415302,167.95,167.93,9.18]
[1748554545245,16.88209084,167.95,167.93,9.18]
[1748554550837,10.92793782,167.94,167.93,9.18]
[1748554551941,16.88244538,167.94,167.93,9.18]
[1748554554630,10.92793782,167.95,167.93,9.18]
[1748554555027,10.92793782,167.95,167.9,27.5291]
[1748554556326,20.84077646,167.94,167.9,27.5291]
[1748554556732,10.92793782,167.93,167.9,26.0]
[1748554556915,31.76871428,167.94,167.9,26.0]
[1748554557123,10.92793782,167.93,167.9,26.0]
[1748554558734,5.95521676,167.92,167.9,26.0]
[1748554561329,20.8420175,167.93,167.9,26.0]
[1748554581266,14.88715536,167.93,167.9,26.0]
[1748554581462,50.60427455,167.97,167.9,26.0]
[1748554581665,10.92793782,167.94,167.9,26.0]
[1748554582478,20.8420175,167.93,167.9,26.0]
[1748554591564,14.88715536,167.93,167.9,26.0]
[1748554593286,29.76722033,167.97,167.9,26.0]
[1748554593287,50.60427455,167.97,167.9,26.0]
[1748554593463,10.92793782,167.95,167.9,26.0]
[1748554595377,20.84077646,167.94,167.9,26.0]
[1748554603770,20.84077646,167.94,167.91,10.92793782]
[1748554603971,5.95450756,167.94,167.91,10.92793782]
[1748554604176,5.95450756,167.94,167.92,10.92793782]
[1748554604375,31.76623264,167.96,167.91,10.92793782]
[1748554604619,20.83829482,167.96,167.92,10.92793782]
[1748554604973,31.76623264,167.96,167.91,10.92793782]
[1748554611397,20.83829482,167.96,167.93,10.92793782]
[1748554611821,5.95344406,167.97,167.93,36.92793782]
[1748554616134,5.95308965,167.98,167.93,36.92793782]
[1748554616516,5.95308965,167.98,167.94,29.86190982]
[1748554616920,5.95308965,167.98,167.95,10.92793782]
[1748554618534,14.88245018,167.99,167.95,10.92793782]
[1748554619447,5.95238095,168.0,167.95,10.92793782]
[1748554620524,5.95238095,168.0,167.97,10.92793782]
[1748554620750,5.95238095,168.0,167.96,10.92793782]
[1748554621056,5.95238095,168.0,167.97,29.86190982]
[1748554622444,25.80788804,168.02,167.97,29.86190982]
[1748554622445,5.95202666,168.01,167.97,29.86190982]
[1748554623552,20.83162263,168.02,167.97,29.86190982]
[1748554627641,14.87995022,168.02,167.97,29.86190982]
[1748554627835,14.87995022,168.02,167.98,10.92793782]
[1748554628122,25.80788804,168.02,167.97,29.86190982]
[1748554628829,31.75956045,168.02,167.97,29.86190982]
[1748554631249,31.75956045,168.02,167.97,18.933972]
[1748554631455,10.92793782,168.01,167.97,18.933972]
[1748554632950,5.95238095,168.0,167.97,18.933972]
[1748554634760,20.83333333,168.0,167.95,1.66666157]
[1748554635054,14.88095238,168.0,167.96,29.86190982]
[1748554636959,14.88095238,168.0,167.97,10.92793782]
[1748554639442,14.88095238,168.0,167.96,29.86190982]
[1748554642843,14.88095238,168.0,167.96,39.04190982]
[1748554648258,20.82961375,168.03,167.96,39.04190982]
[1748554648467,10.92793782,168.02,167.96,39.04190982]
[1748554648763,10.92793782,168.02,167.97,10.92793782]
[1748554650252,20.83209332,168.01,167.97,10.92793782]
[1748554652344,14.88006666,168.01,167.98,10.92793782]
[1748554652672,14.88006666,168.01,167.97,10.92793782]
[1748554654152,20.83209332,168.01,167.97,10.92793782]
[1748554655395,14.88006666,168.01,167.97,10.92793782]
[1748554657385,20.82961375,168.03,167.96,28.113972]
[1748554661968,20.82961375,168.03,167.97,9.16]
[1748554675436,50.58620483,168.03,167.97,9.16]
[1748554681206,50.58620483,168.03,167.96,18.79181043]
[1748554690727,50.58620483,168.03,167.96,27.95181043]
[1748554695533,50.58620483,168.03,167.96,18.79181043]
[1748554717535,50.58620483,168.03,167.96,27.95181043]
[1748554717735,14.87829554,168.03,167.97,0.14216157]
[1748554720061,29.75380494,168.05,167.97,0.14216157]
[1748554721348,50.58093971,168.05,167.97,0.14216157]
[1748554723037,50.58093971,168.05,167.97,0.28432314]
[1748554724035,44.63032978,168.05,167.97,0.28432314]
[1748554740783,44.63032978,168.05,167.99,0.28432314]
[1748554740784,14.87652484,168.05,167.99,0.28432314]
[1748554741491,5.95025586,168.06,167.99,0.28432314]
[1748554742194,20.82589551,168.06,167.99,0.28432314]
[1748554742875,56.76217859,168.09,167.99,0.28432314]
[1748554743489,86.50814801,168.09,167.99,0.28432314]
[1748554743684,86.50814801,168.09,167.99,26.28432314]
[1748554745488,86.50814801,168.09,168.01,18.933972]
[1748554758600,50.56814801,168.09,168.01,18.933972]
[1748554758810,86.50814801,168.09,168.01,18.933972]
[1748554759812,86.50814801,168.09,168.01,18.79181043]
[1748554762112,20.82465638,168.07,168.01,18.79181043]
[1748554766706,14.87475456,168.07,168.01,18.79181043]
[1748554772423,14.87475456,168.07,168.0,9.16]
[1748554789744,14.87475456,168.07,168.0,18.933972]
[1748554800164,14.87475456,168.07,168.0,44.933972]
[1748554800355,14.87475456,168.07,168.01,0.14216157]
[1748554800935,5.94954783,168.08,168.04,18.933972]
[1748554801558,20.82174725,168.1,168.04,18.933972]
[1748554805139,20.82174725,168.1,168.02,26.0]
[1748554805348,20.82174725,168.1,168.03,18.933972]
[1748554808972,20.82174725,168.1,168.03,28.113972]
[1748554817560,14.87290728,168.1,168.03,28.113972]
[1748554818645,14.87290728,168.1,168.04,1.5925]
[1748554821672,14.87290728,168.1,168.06,26.0]
[1748554823275,14.87290728,168.1,168.08,26.0]
[1748554823663,20.81598667,168.14,168.08,26.0]
[1748554824056,20.81598667,168.14,168.08,28.96150999]
[1748554825863,50.55311049,168.14,168.08,28.96150999]
[1748554829657,20.81103578,168.18,168.14,0.28432314]
[1748554830277,5.94601022,168.18,168.14,0.28432314]
[1748554831260,14.86307343,168.21,168.14,0.28432314]
[1748554832163,14.86307343,168.21,168.14,0.42648471]
[1748554832364,14.86307343,168.21,168.14,0.28432314]
[1748554837267,29.7229818,168.22,168.14,0.28432314]
[1748554838273,29.7229818,168.22,168.13,20.22104886]
[1748554842276,29.7229818,168.22,168.16,26.0]
[1748554850972,29.7229818,168.22,168.14,0.28432314]
[1748554854384,29.7229818,168.22,168.16,26.0]
[1748554865207,29.7229818,168.22,168.14,9.14]
[1748554866112,41.2229818,168.22,168.14,9.14]
[1748554867199,62.02906906,168.22,168.14,9.14]
[1748554869795,26.0,168.21,168.14,9.14]
[1748554871023,62.02906906,168.22,168.14,9.14]
[1748554871800,62.02906906,168.22,168.12,26.0]
[1748554877021,1.5011,168.21,168.1,9.14]
[1748554877327,62.40432314,168.2,168.1,9.14]
[1748554878110,50.53808191,168.19,168.1,9.14]
[1748554892855,62.03808191,168.19,168.1,9.14]
[1748554896529,62.03808191,168.19,168.09,1.5338]
[1748554900459,36.22,168.18,168.09,1.5338]
[1748554904437,50.54409227,168.17,168.09,1.5338]
[1748554921857,62.04409227,168.17,168.09,1.5338]
[1748554922071,1.5874,168.16,168.08,26.0]
[1748554924375,50.55010405,168.15,168.08,26.0]
[1748554925466,50.55010405,168.15,168.05,1.68956157]
[1748554925967,50.55010405,168.15,168.05,27.68956157]
[1748554928190,50.55010405,168.15,168.05,30.70240085]
[1748554929890,59.83010405,168.15,168.05,30.70240085]
[1748554938185,50.55010405,168.15,168.05,30.70240085]
[1748554938397,36.16,168.14,168.05,30.70240085]
[1748554939500,20.81722476,168.13,168.05,30.70240085]
[1748554967047,20.81722476,168.13,168.07,26.0]
[1748554983364,20.81722476,168.13,168.07,0.28432314]
[1748554984866,20.81722476,168.13,168.06,32.272]
[1748554985236,14.86944626,168.13,168.06,32.272]
[1748554996541,35.68242639,168.15,168.06,32.272]
[1748554996745,50.55010405,168.15,168.06,32.272]
[1748555009872,50.55010405,168.15,168.06,41.512]
[1748555013568,61.41867861,168.15,168.1,10.86857456]
[1748555013764,50.55010405,168.15,168.1,10.86857456]
[1748555018784,50.55010405,168.15,168.09,10.86857456]
[1748555027680,31.68332328,168.15,168.06,41.512]
[1748555027892,20.81474872,168.15,168.09,10.86857456]
[1748555028689,31.68332328,168.15,168.06,41.512]
[1748555029015,31.68332328,168.15,168.08,10.86857456]
[1748555029305,20.81474872,168.15,168.08,10.86857456]
[1748555030706,50.55010405,168.15,168.06,41.512]
[1748555031014,61.41867861,168.15,168.08,10.86857456]
[1748555031512,61.41867861,168.15,168.09,10.86857456]
[1748555031803,20.81722476,168.13,168.09,10.86857456]
[1748555032805,20.81722476,168.13,168.06,41.512]
[1748555032806,20.81722476,168.13,168.11,10.86857456]
[1748555033004,20.81722476,168.13,168.1,10.86857456]
[1748555033389,20.81722476,168.13,168.09,10.86857456]
[1748555034385,14.86944626,168.13,168.09,10.86857456]
[1748555040437,20.81722476,168.13,168.06,35.24]
[1748555040636,20.81722476,168.13,168.08,10.86857456]
[1748555040948,20.81722476,168.13,168.06,35.24]
[1748555041125,31.68579932,168.13,168.06,35.24]
[1748555041304,10.86857456,168.12,168.06,35.24]
[1748555041630,10.86857456,168.12,168.06,46.10857456]
[1748555041927,10.86857456,168.12,168.06,35.24]
[1748555042219,10.86857456,168.12,168.07,10.86857456]
[1748555042425,31.68579932,168.13,168.06,35.24]
[1748555042933,97.62469184,168.13,168.08,10.86857456]
[1748555043230,67.88579932,168.13,168.06,35.24]
[1748555043537,67.88579932,168.13,168.08,10.86857456]
[1748555043826,20.81722476,168.13,168.09,36.86857456]
[1748555045805,20.81722476,168.13,168.1,10.86857456]
[1748555046013,20.81722476,168.13,168.09,36.86857456]
[1748555051916,14.86944626,168.13,168.09,36.86857456]
[1748555052938,14.86944626,168.13,168.09,26.0]
[1748555053105,14.86944626,168.13,168.09,36.86857456]
[1748555057441,14.86944626,168.13,168.09,26.0]
[1748555058365,14.86944626,168.13,168.09,36.86857456]
[1748555058943,14.86944626,168.13,168.09,26.0]
[1748555059244,20.81722476,168.13,168.09,26.0]
[1748555059739,20.81722476,168.13,168.08,36.86857456]
[1748555061413,20.81722476,168.13,168.08,26.0]
[1748555061618,31.68579932,168.13,168.08,36.86857456]
[1748555062134,31.68579932,168.13,168.08,26.0]
[1748555064559,31.29835714,168.13,168.08,26.0]
[1748555065836,20.42978258,168.13,168.08,26.0]
[1748555066034,31.29835714,168.13,168.08,26.0]
[1748555066751,10.86857456,168.12,168.08,26.0]
[1748555067344,20.81970138,168.11,168.08,26.0]
[1748555073448,14.87121527,168.11,168.08,26.0]
[1748555075563,29.73889252,168.13,168.08,26.0]
[1748555075881,40.60746708,168.13,168.08,26.0]
[1748555077254,61.42469184,168.13,168.08,26.0]
[1748555080473,61.42469184,168.13,168.07,10.86857456]
[1748555081452,44.60833878,168.13,168.07,10.86857456]
[1748555081781,55.47691334,168.13,168.07,10.86857456]
[1748555082462,55.47691334,168.13,168.08,10.86857456]
[1748555083685,61.42469184,168.13,168.07,10.86857456]
[1748555088287,44.60833878,168.13,168.07,10.86857456]
[1748555089381,50.55611728,168.13,168.07,10.86857456]
[1748555090180,61.42469184,168.13,168.06,36.86857456]
[1748555092286,61.42469184,168.13,168.07,10.86857456]
[1748555092495,20.81970138,168.11,168.07,10.86857456]
[1748555096672,20.81970138,168.11,168.06,26.0]
[1748555096891,20.81970138,168.11,168.06,36.86857456]
[1748555097700,20.81970138,168.11,168.07,10.86857456]
[1748555098274,20.81970138,168.11,168.08,10.86857456]
[1748555098899,20.81970138,168.11,168.09,10.86857456]
[1748555099400,5.94848611,168.11,168.09,10.86857456]
[1748555099585,5.94848611,168.11,168.1,10.86857456]
[1748555099788,5.9477785,168.13,168.1,10.86857456]
[1748555100197,5.94742476,168.14,168.1,10.86857456]
[1748555100396,5.94671741,168.16,168.11,1.5487]
[1748555100595,5.94671741,168.16,168.13,26.0]
[1748555100805,5.94671741,168.16,168.15,10.86857456]
[1748555101002,5.94565669,168.19,168.15,10.86857456]
[1748555101398,5.94565669,168.19,168.16,10.86857456]
[1748555102186,5.94565669,168.19,168.17,10.86857456]
[1748555103376,14.86390685,168.2,168.17,10.86857456]
[1748555106491,10.86857456,168.21,168.17,12.45227456]
[1748555107610,5.94530321,168.2,168.17,12.45227456]
[1748555109205,5.94530321,168.2,168.17,1.5837]
[1748555109398,5.94530321,168.2,168.15,36.86857456]
[1748555109399,10.86857456,168.2,168.15,36.86857456]
[1748555109714,10.86857456,168.2,168.15,10.86857456]
[1748555109914,10.86857456,168.2,168.14,26.0]
[1748555110136,10.86857456,168.2,168.15,10.86857456]
[1748555111194,5.94565669,168.19,168.15,10.86857456]
[1748555115495,5.94459636,168.22,168.19,1.6508]
[1748555115819,5.94318316,168.26,168.21,10.86857456]
[1748555115992,5.94318316,168.26,168.22,10.86857456]
[1748555116823,20.80061598,168.27,168.22,10.86857456]
[1748555117507,31.66919054,168.27,168.22,10.86857456]
[1748555117702,20.80061598,168.27,168.22,10.86857456]
[1748555117911,20.80061598,168.27,168.23,10.86857456]
[1748555118625,20.80061598,168.27,168.22,10.86857456]
[1748555119409,10.86857456,168.26,168.19,1.6508]
[1748555119601,10.86857456,168.24,168.19,38.51937456]
[1748555120898,5.944243,168.23,168.19,38.51937456]
[1748555122326,5.944243,168.23,168.2,10.86857456]
[1748555122621,5.944243,168.23,168.19,38.51937456]
[1748555123596,20.80402296,168.24,168.19,38.51937456]
[1748555124210,20.80402296,168.24,168.2,10.86857456]
[1748555128214,20.80402296,168.24,168.19,27.6508]
[1748555128419,10.86857456,168.23,168.19,26.0]
[1748555128816,10.86857456,168.23,168.17,10.86857456]
[1748555129129,10.86857456,168.22,168.17,36.86857456]
[1748555129804,20.80732417,168.21,168.17,36.86857456]
[1748555130944,20.80732417,168.21,168.18,10.86857456]
[1748555131635,14.86237441,168.21,168.18,10.86857456]
[1748555138138,14.86237441,168.21,168.17,26.0]
[1748555138516,14.86237441,168.21,168.17,36.86857456]
[1748555140213,14.86237441,168.21,168.16,10.86857456]
[1748555140719,14.86237441,168.21,168.17,10.86857456]
[1748555140918,14.86237441,168.21,168.15,37.0462]
[1748555140919,14.86237441,168.21,168.16,10.86857456]
[1748555142440,14.86237441,168.21,168.15,37.0462]
[1748555144122,14.86237441,168.21,168.15,47.91477456]
[1748555146137,14.86237441,168.21,168.15,38.53477456]
[1748555147747,20.80732417,168.21,168.16,10.86857456]
[1748555154733,20.80732417,168.21,168.15,38.53477456]
[1748555160223,20.80732417,168.21,168.15,27.6662]
[1748555160755,20.80732417,168.21,168.16,10.86857456]
[1748555160960,20.80732417,168.21,168.17,10.86857456]
[1748555161755,31.67589873,168.21,168.16,10.86857456]
[1748555162354,31.67589873,168.21,168.15,27.6662]
[1748555162355,10.86857456,168.2,168.15,27.6662]
[1748555163062,20.80732417,168.21,168.15,38.53477456]
[1748555163354,5.94565669,168.19,168.15,38.53477456]
[1748555165554,5.94530321,168.2,168.15,38.53477456]
[1748555166162,20.80856123,168.2,168.15,38.53477456]
[1748555166660,20.80856123,168.2,168.15,27.6662]
[1748555166833,20.80856123,168.2,168.15,38.53477456]
[1748555167548,20.80856123,168.2,168.15,27.6662]
[1748555168675,14.86325802,168.2,168.15,27.6662]
[1748555180689,25.73183258,168.2,168.15,26.0]
[1748555180881,14.86325802,168.2,168.15,26.0]
[1748555181187,25.73183258,168.2,168.15,26.0]
[1748555182985,31.67713579,168.2,168.15,26.0]
[1748555184295,10.86857456,168.19,168.15,26.0]
[1748555186267,5.94601022,168.18,168.17,26.0]
[1748555189493,5.94601022,168.18,168.15,26.0]
[1748555190375,5.94601022,168.18,168.17,26.0]
[1748555191602,5.94565669,168.19,168.17,26.0]
[1748555195388,14.86325802,168.2,168.17,26.0]
[1748555195564,25.73183258,168.2,168.17,26.0]
[1748555195768,25.73183258,168.2,168.14,10.86857456]
[1748555195969,25.73183258,168.2,168.15,26.0]
[1748555198801,31.67713579,168.2,168.15,26.0]
[1748555199172,20.80856123,168.2,168.15,26.0]
[1748555200499,20.80856123,168.2,168.16,26.0]
[1748555227735,20.80856123,168.2,168.13,26.14216157]
[1748555227928,20.80856123,168.2,168.14,26.0]
[1748555235530,14.86325802,168.2,168.14,26.0]
[1748555242761,14.86325802,168.2,168.13,26.14216157]
[1748555242917,14.86325802,168.2,168.15,26.0]
[1748555244618,14.86325802,168.2,168.13,0.14216157]
[1748555247136,14.86325802,168.2,168.15,26.0]
[1748555247536,14.86325802,168.2,168.14,10.86857456]
[1748555247739,14.86325802,168.2,168.13,26.14216157]
[1748555248054,14.86325802,168.2,168.13,37.01073613]
[1748555248234,20.80856123,168.2,168.13,37.01073613]
[1748555248757,31.67713579,168.2,168.13,37.01073613]
[1748555248959,20.80856123,168.2,168.13,37.01073613]
[1748555249158,31.67713579,168.2,168.13,37.01073613]
[1748555251632,14.86325802,168.2,168.14,1.5104]
[1748555252832,14.86325802,168.2,168.15,26.0]
[1748555252833,20.80856123,168.2,168.15,26.0]
[1748555253135,31.67713579,168.2,168.15,26.0]
[1748555261438,31.67713579,168.2,168.14,1.5104]
[1748555261633,31.67713579,168.2,168.15,26.0]
[1748555264535,31.67713579,168.2,168.14,1.5104]
[1748555264741,31.67713579,168.2,168.15,26.0]
[1748555267158,10.86857456,168.19,168.15,26.0]
[1748555267343,5.94601022,168.18,168.15,26.0]
[1748555270662,5.94601022,168.18,168.14,1.5104]
[1748555276151,25.73183258,168.2,168.14,1.5104]
[1748555277875,31.67713579,168.2,168.14,1.5104]
[1748555280477,20.80856123,168.2,168.14,1.5104]
[1748555280654,31.67713579,168.2,168.14,1.5104]
[1748555284180,25.73183258,168.2,168.14,1.5104]
[1748555285188,31.67713579,168.2,168.14,1.5104]
[1748555294996,25.73183258,168.2,168.14,1.5104]
[1748555296417,31.67713579,168.2,168.14,1.5104]
[1748555296879,10.86857456,168.19,168.14,1.5104]
[1748555297706,5.94601022,168.18,168.14,1.5104]
[1748555305299,16.81458478,168.18,168.14,1.5104]
[1748555307103,14.86325802,168.2,168.14,1.5104]
[1748555307104,10.86857456,168.19,168.14,1.5104]
[1748555307303,14.86325802,168.2,168.14,1.5104]
[1748555307507,10.86857456,168.19,168.14,1.5104]
[1748555309103,5.94601022,168.18,168.14,1.5104]
[1748555310912,16.81458478,168.18,168.14,1.5104]
[1748555311080,31.67961034,168.18,168.1,30.171693]
[1748555311404,50.54108691,168.18,168.1,12.561393]
[1748555311796,10.86857456,168.13,168.1,12.561393]
[1748555311990,10.86857456,168.12,168.1,12.561393]
[1748555312187,16.81706067,168.11,168.1,12.561393]
[1748555322012,14.8693658,168.14,168.1,12.561393]
[1748555322310,10.86857456,168.11,168.1,12.561393]
[1748555323099,16.81706067,168.11,168.1,12.561393]
[1748555329613,10.86857456,168.11,168.1,12.561393]
[1748555333227,14.8693658,168.14,168.1,12.561393]
[1748555333409,16.81706067,168.11,168.1,12.561393]
[1748555338331,14.8693658,168.14,168.1,12.561393]
[1748555338509,10.86857456,168.11,168.1,12.561393]
[1748555339932,16.81706067,168.11,168.1,12.561393]
[1748555342235,20.81679056,168.14,168.1,12.561393]
[1748555342419,10.86857456,168.11,168.1,12.561393]
[1748555344524,16.81706067,168.11,168.1,12.561393]
[1748555348023,5.94848611,168.11,168.1,12.561393]
[1748555348220,16.81706067,168.11,168.1,12.561393]
[1748555349055,5.94813228,168.12,168.1,12.561393]
[1748555349261,10.86857456,168.11,168.1,12.561393]
[1748555351235,16.81706067,168.11,168.1,12.561393]
[1748555359554,5.94813228,168.12,168.1,12.561393]
[1748555359855,10.86857456,168.11,168.1,12.561393]
[1748555362452,16.81706067,168.11,168.1,12.561393]
[1748555368950,104.90500473,168.11,168.02,6.62434878]
[1748555369149,10.86857456,168.04,168.02,6.62434878]
[1748555369351,5.95131821,168.03,168.02,6.62434878]
[1748555369733,5.95131821,168.03,168.02,9.66026927]
[1748555372559,5.95096405,168.04,168.02,0.07044878]
[1748555372761,16.81953861,168.04,168.02,0.07044878]
[1748555382278,25.74517334,168.05,168.02,0.07044878]
[1748555383058,25.74517334,168.05,168.02,10.93902334]
[1748555383059,14.87659878,168.05,168.02,10.93902334]
[1748555383977,5.94990182,168.07,168.03,10.86857456]
[1748555384984,14.87466536,168.08,168.03,10.86857456]
[1748555385286,25.74323992,168.08,168.03,10.86857456]
[1748555386679,31.69278775,168.08,168.03,10.86857456]
[1748555387389,20.82421319,168.08,168.03,10.86857456]
[1748555387681,5.94954783,168.08,168.03,10.86857456]
[1748555388662,5.94954783,168.08,168.04,11.01073613]
[1748555388872,5.94919388,168.09,168.04,11.01073613]
[1748555389884,16.81776844,168.09,168.04,11.01073613]
[1748555391869,16.81776844,168.09,168.05,26.0]
[1748555398682,10.86857456,168.09,168.05,26.0]
[1748555399777,5.94954783,168.08,168.05,26.0]
[1748555406607,16.81789591,168.09,168.05,26.0]
[1748555410411,16.81789591,168.09,168.06,0.28432314]
[1748555410412,5.94932135,168.09,168.06,0.28432314]
[1748555415111,16.81789591,168.09,168.06,0.14216157]
[1748555418996,10.86857456,168.1,168.06,0.14216157]
[1748555419515,10.86857456,168.1,168.06,26.14216157]
[1748555420220,5.94919388,168.09,168.06,26.14216157]
[1748555427909,5.94919388,168.09,168.07,26.0]
[1748555428612,10.86857456,168.11,168.07,26.0]
[1748555429623,10.86857456,168.11,168.06,0.14216157]
[1748555430808,5.94883997,168.1,168.06,0.14216157]
[1748555438225,5.94883997,168.1,168.07,0.14216157]
[1748555438920,5.94848611,168.11,168.07,26.14216157]
[1748555439236,16.81706067,168.11,168.07,26.14216157]
[1748555443938,5.94848611,168.11,168.07,26.14216157]
[1748555444329,5.94848611,168.11,168.07,37.01073613]
[1748555445016,5.94848611,168.11,168.08,0.14216157]
[1748555458466,10.86857456,168.13,168.08,0.14216157]
[1748555459325,5.94813228,168.12,168.08,0.14216157]
[1748555466172,20.81846299,168.12,168.08,0.14216157]
[1748555466357,20.81846299,168.12,168.08,26.14216157]
[1748555466557,20.81846299,168.12,168.1,26.0]
[1748555467189,31.68703755,168.12,168.08,26.14216157]
[1748555467373,31.68703755,168.12,168.09,26.0]
[1748555468696,20.81846299,168.12,168.1,26.0]
[1748555480295,20.81846299,168.12,168.09,0.14216157]
[1748555482292,20.81846299,168.12,168.08,0.28432314]
[1748555489720,31.68703755,168.12,168.08,0.28432314]
[1748555490320,20.81846299,168.12,168.08,0.28432314]
[1748555503037,50.55010405,168.15,168.08,0.28432314]
[1748555503229,10.86857456,168.13,168.08,0.28432314]
[1748555504339,5.94813228,168.12,168.08,0.28432314]
[1748555507739,14.86953271,168.13,168.08,0.28432314]
[1748555509616,20.81731121,168.13,168.08,0.28432314]
[1748555515355,14.86953271,168.13,168.08,0.28432314]
[1748555517647,20.81731121,168.13,168.08,0.28432314]
[1748555522053,14.86953271,168.13,168.08,0.28432314]
[1748555522945,14.86953271,168.13,168.08,9.60432314]
[1748555525570,20.81731121,168.13,168.08,9.60432314]
[1748555533275,14.86953271,168.13,168.08,9.60432314]
[1748555545862,20.81731121,168.13,168.08,9.60432314]
[1748555546883,31.68588577,168.13,168.08,9.60432314]
[1748555547469,14.86953271,168.13,168.08,9.60432314]
[1748555549372,20.81731121,168.13,168.09,26.0]
[1748555553598,14.86953271,168.13,168.09,26.0]
[1748555555380,20.81731121,168.13,168.09,26.0]
[1748555555976,20.81731121,168.13,168.1,0.28432314]
[1748555556493,5.9477785,168.13,168.1,37.29505927]
[1748555557272,5.94742476,168.14,168.1,37.29505927]
[1748555557899,5.94742476,168.14,168.12,0.28432314]
[1748555560198,5.94742476,168.14,168.12,0.14216157]
[1748555561592,5.94742476,168.14,168.13,26.0]
[1748555562979,20.80979843,168.19,168.13,26.0]
[1748555563179,10.86857456,168.16,168.13,26.0]
[1748555563375,10.86857456,168.17,168.15,26.0]
[1748555563903,10.86857456,168.18,168.14,0.28432314]
[1748555564582,20.80979843,168.19,168.14,0.28432314]
[1748555564905,10.86857456,168.18,168.14,0.28432314]
[1748555565090,5.94636379,168.17,168.14,0.28432314]
[1748555567899,16.81493835,168.17,168.15,26.0]
[1748555570420,5.94636379,168.17,168.15,26.0]
[1748555571601,14.86414174,168.19,168.16,0.28432314]
[1748555571602,5.94565669,168.19,168.16,0.28432314]
[1748555571916,5.94565669,168.19,168.17,0.14216157]
[1748555574019,5.94565669,168.19,168.18,26.0]
[1748555575107,5.94494976,168.21,168.19,0.28432314]
[1748555575328,5.94388968,168.24,168.19,19.07613357]
[1748555575531,5.94388968,168.24,168.23,26.28432314]
[1748555576035,20.79935905,168.28,168.23,26.28432314]
[1748555576337,10.86857456,168.25,168.23,26.28432314]
[1748555576706,10.86857456,168.25,168.23,29.27683089]
[1748555578736,5.94388968,168.24,168.23,29.27683089]
[1748555583229,31.67218844,168.24,168.2,9.3]
[1748555583413,10.86857456,168.22,168.2,35.3]
[1748555583615,10.86857456,168.22,168.2,9.3]
[1748555583944,10.86857456,168.22,168.21,26.0]
[1748555584158,10.86857456,168.22,168.2,9.3]
[1748555584333,10.86857456,168.22,168.21,26.0]
[1748555584533,10.86857456,168.22,168.21,28.97747735]
[1748555585452,10.86857456,168.22,168.17,54.95181043]
[1748555585453,31.67466182,168.22,168.15,9.3]
[1748555585749,10.86857456,168.19,168.15,45.46]
[1748555585913,10.86857456,168.19,168.15,9.3]
[1748555586118,10.86857456,168.17,168.15,12.27384819]
[1748555586748,10.86857456,168.17,168.15,9.3]
[1748555587044,10.86857456,168.16,168.15,9.3]
[1748555587249,16.81529197,168.16,168.15,9.3]
[1748555587427,16.81529197,168.16,168.14,26.0]
[1748555587621,16.81529197,168.16,168.11,10.86857456]
[1748555588036,16.81529197,168.16,168.12,26.0]
[1748555588922,31.68208549,168.16,168.12,28.91028713]
[1748555589636,10.86857456,168.17,168.13,26.0]
[1748555590947,10.86857456,168.17,168.12,13.77886169]
[1748555591337,20.81351093,168.16,168.12,13.77886169]
[1748555593538,20.81351093,168.16,168.13,10.86857456]
[1748555597667,20.81351093,168.16,168.12,13.89021444]
[1748555600738,20.81351093,168.16,168.12,3.02163988]
[1748555600970,31.68208549,168.16,168.12,0.28432314]
[1748555601282,20.81351093,168.16,168.12,3.24502005]
[1748555601488,20.81351093,168.16,168.12,0.28432314]
[1748555605971,20.81351093,168.16,168.12,3.29526064]
[1748555614391,50.53207299,168.21,168.12,3.29526064]
[1748555614693,10.86857456,168.18,168.12,3.29526064]
[1748555615886,10.86857456,168.17,168.12,3.29526064]
[1748555618793,20.81351093,168.16,168.12,3.29526064]